[Event "Betsys MČR v online bleskovém šachu 2021"]
[Site "Chess.com"]
[Date "2021.04.17"]
[Round "5"]
[White "ikovacs"]
[Black "sharpi5135"]
[Result "1-0"]
[WhiteElo "1049"]
[BlackElo "773"]
[TimeControl "180+1"]
[EndTime "9:47:32 PDT"]
[Termination "Uživatel ikovacs zvítězil na čas"]

1. d4 {[%clk 0:03:00.9]} 1... d5 {[%clk 0:02:54.1]} 2. e3 {[%clk 0:03:00.4]}
2... c6 {[%clk 0:02:53.7]} 3. Nf3 {[%clk 0:02:59.6]} 3... e6 {[%clk 0:02:52]} 4.
c4 {[%clk 0:02:58.2]} 4... Be7 {[%clk 0:02:36.8]} 5. c5 {[%clk 0:02:55]} 5... b6
{[%clk 0:02:33.2]} 6. b4 {[%clk 0:02:50.5]} 6... bxc5 {[%clk 0:02:29.2]} 7. bxc5
{[%clk 0:02:45.8]} 7... Nf6 {[%clk 0:02:23.7]} 8. Ne5 {[%clk 0:02:41.2]} 8...
O-O {[%clk 0:02:13.2]} 9. Bd3 {[%clk 0:02:38.3]} 9... Nbd7 {[%clk 0:01:59.4]}
10. Nxd7 {[%clk 0:02:35.3]} 10... Bxd7 {[%clk 0:01:57.7]} 11. O-O {[%clk
0:02:35.3]} 11... Kh8 {[%clk 0:01:40.4]} 12. Nd2 {[%clk 0:02:32]} 12... g6
{[%clk 0:01:38.1]} 13. Nf3 {[%clk 0:02:30.3]} 13... Ne4 {[%clk 0:01:33.9]} 14.
Bxe4 {[%clk 0:02:22.4]} 14... dxe4 {[%clk 0:01:32.9]} 15. Ne5 {[%clk 0:02:21.3]}
15... Be8 {[%clk 0:01:16.2]} 16. Qg4 {[%clk 0:02:10.2]} 16... Bf6 {[%clk
0:01:09.1]} 17. Qxe4 {[%clk 0:02:07.2]} 17... Qd5 {[%clk 0:00:54.9]} 18. Qxd5
{[%clk 0:02:03.4]} 18... exd5 {[%clk 0:00:53.5]} 19. Bb2 {[%clk 0:01:53.3]}
19... Bg7 {[%clk 0:00:44.8]} 20. Rab1 {[%clk 0:01:49.3]} 20... f6 {[%clk
0:00:43.1]} 21. Ng4 {[%clk 0:01:34.6]} 21... Bd7 {[%clk 0:00:38.1]} 22. h3
{[%clk 0:01:31]} 22... Bxg4 {[%clk 0:00:36.7]} 23. hxg4 {[%clk 0:01:30.7]} 23...
Rae8 {[%clk 0:00:32.8]} 24. Rbe1 {[%clk 0:01:27.4]} 24... f5 {[%clk 0:00:31.2]}
25. g5 {[%clk 0:01:21.2]} 25... f4 {[%clk 0:00:27.5]} 26. exf4 {[%clk
0:00:56.9]} 26... Re4 {[%clk 0:00:23.6]} 27. Rxe4 {[%clk 0:00:55.6]} 27... dxe4
{[%clk 0:00:22.7]} 28. Re1 {[%clk 0:00:53.1]} 28... Re8 {[%clk 0:00:21.5]} 29.
f3 {[%clk 0:00:48.9]} 29... e3 {[%clk 0:00:19.9]} 30. g3 {[%clk 0:00:37.9]}
30... e2 {[%clk 0:00:19.3]} 31. Kf2 {[%clk 0:00:36.6]} 31... a5 {[%clk
0:00:15.3]} 32. Rxe2 {[%clk 0:00:36.1]} 32... Rxe2+ {[%clk 0:00:13.1]} 33. Kxe2
{[%clk 0:00:35.7]} 33... a4 {[%clk 0:00:12.4]} 34. Ke3 {[%clk 0:00:32.5]} 34...
Kg8 {[%clk 0:00:08.1]} 35. Ke4 {[%clk 0:00:32.1]} 35... Kf7 {[%clk 0:00:07.8]}
36. g4 {[%clk 0:00:31.1]} 36... Ke7 {[%clk 0:00:07.1]} 37. f5 {[%clk 0:00:30.9]}
37... Kf7 {[%clk 0:00:05.8]} 38. fxg6+ {[%clk 0:00:26.3]} 38... Ke7 {[%clk
0:00:05.3]} 39. f4 {[%clk 0:00:24.3]} 39... Kf8 {[%clk 0:00:02.3]} 40. f5 {[%clk
0:00:24.4]} 1-0

[Event "Betsys MČR v online bleskovém šachu 2021"]
[Site "Chess.com"]
[Date "2021.04.17"]
[Round "5"]
[White "malviny"]
[Black "doktorovak"]
[Result "0-1"]
[WhiteElo "1168"]
[BlackElo "1670"]
[TimeControl "180+1"]
[EndTime "9:47:33 PDT"]
[Termination "Uživatel doktorovak zvítězil po vzdání soupeře"]

1. e4 {[%clk 0:03:00.9]} 1... c5 {[%clk 0:02:59.9]} 2. Nf3 {[%clk 0:03:01.3]}
2... Nc6 {[%clk 0:02:59.4]} 3. d4 {[%clk 0:03:00.9]} 3... cxd4 {[%clk
0:02:58.9]} 4. Nxd4 {[%clk 0:03:00.5]} 4... e6 {[%clk 0:02:58.2]} 5. Nxc6 {[%clk
0:03:00.2]} 5... bxc6 {[%clk 0:02:58.4]} 6. Nc3 {[%clk 0:02:59.7]} 6... Ne7
{[%clk 0:02:57.2]} 7. e5 {[%clk 0:02:59.8]} 7... Ng6 {[%clk 0:02:56.9]} 8. Bd3
{[%clk 0:02:59.3]} 8... Nxe5 {[%clk 0:02:55.9]} 9. O-O {[%clk 0:02:59.4]} 9...
Ng6 {[%clk 0:02:55]} 10. Bxg6 {[%clk 0:02:58.2]} 10... hxg6 {[%clk 0:02:54.6]}
11. h3 {[%clk 0:02:56.5]} 11... d5 {[%clk 0:02:54]} 12. Bf4 {[%clk 0:02:50.7]}
12... Bd6 {[%clk 0:02:53.3]} 13. Bxd6 {[%clk 0:02:46.2]} 13... Qxd6 {[%clk
0:02:53.3]} 14. Qf3 {[%clk 0:02:43.6]} 14... O-O {[%clk 0:02:46.6]} 15. b3
{[%clk 0:02:43.5]} 15... Ba6 {[%clk 0:02:44.6]} 16. Rfe1 {[%clk 0:02:42.8]}
16... c5 {[%clk 0:02:42.7]} 17. Na4 {[%clk 0:02:37.7]} 17... Bb5 {[%clk
0:02:40]} 18. Nc3 {[%clk 0:02:35.4]} 18... Bc6 {[%clk 0:02:39]} 19. Qg4 {[%clk
0:02:24.8]} 19... e5 {[%clk 0:02:30.9]} 20. Qg5 {[%clk 0:02:20.7]} 20... e4
{[%clk 0:02:27.5]} 21. Rad1 {[%clk 0:02:17.4]} 21... Rad8 {[%clk 0:02:07.6]} 22.
Nxe4 {[%clk 0:02:16.4]} 22... Qc7 {[%clk 0:01:48.8]} 23. Nxc5 {[%clk 0:02:14.4]}
23... d4 {[%clk 0:01:47.3]} 24. Rd2 {[%clk 0:02:06]} 24... Rd5 {[%clk
0:01:46.9]} 25. Re7 {[%clk 0:01:40.4]} 25... Qd6 {[%clk 0:01:35.3]} 26. Ne4
{[%clk 0:01:31.9]} 26... Qb4 {[%clk 0:01:15.4]} 27. Qf4 {[%clk 0:01:18.6]} 27...
Rf5 {[%clk 0:01:09]} 28. Qg3 {[%clk 0:01:04.8]} 28... Bxe4 {[%clk 0:01:06.4]}
29. Rxe4 {[%clk 0:01:01.5]} 29... Qxd2 {[%clk 0:01:06.4]} 30. Re7 {[%clk
0:00:52.1]} 30... Qxc2 {[%clk 0:01:04.7]} 31. Rxa7 {[%clk 0:00:51.1]} 31... d3
{[%clk 0:01:03.8]} 32. Rd7 {[%clk 0:00:49.5]} 32... d2 {[%clk 0:01:03.8]} 33.
Qd3 {[%clk 0:00:48.3]} 33... d1=Q+ {[%clk 0:00:59.4]} 34. Qxd1 {[%clk
0:00:47.1]} 34... Qxf2+ {[%clk 0:00:59.3]} 35. Kh1 {[%clk 0:00:41.1]} 35... Qxa2
{[%clk 0:00:56.9]} 36. Rd2 {[%clk 0:00:36.8]} 36... Qa6 {[%clk 0:00:54]} 37. b4
{[%clk 0:00:31.3]} 37... Rf1+ {[%clk 0:00:52.1]} 38. Kh2 {[%clk 0:00:29.8]}
38... Rxd1 {[%clk 0:00:51.4]} 39. Rxd1 {[%clk 0:00:26.5]} 39... Qc4 {[%clk
0:00:46.7]} 40. Rb1 {[%clk 0:00:22.3]} 40... Rb8 {[%clk 0:00:44.1]} 41. Re1
{[%clk 0:00:19.5]} 41... Qf4+ {[%clk 0:00:38.9]} 42. Kg1 {[%clk 0:00:17.9]}
42... Rxb4 {[%clk 0:00:38.6]} 43. Re8+ {[%clk 0:00:16.9]} 43... Kh7 {[%clk
0:00:38.8]} 44. Re1 {[%clk 0:00:15.9]} 44... Rb2 {[%clk 0:00:37.2]} 45. Kh1
{[%clk 0:00:13]} 45... Qg3 {[%clk 0:00:36.3]} 46. Rg1 {[%clk 0:00:12.8]} 46...
f5 {[%clk 0:00:34.2]} 0-1

[Event "Betsys MČR v online bleskovém šachu 2021"]
[Site "Chess.com"]
[Date "2021.04.17"]
[Round "5"]
[White "Nimrod64"]
[Black "tomasPardubice"]
[Result "1/2-1/2"]
[WhiteElo "2273"]
[BlackElo "2082"]
[TimeControl "180+1"]
[EndTime "9:47:34 PDT"]
[Termination "Remíza opakováním pozice"]

1. d4 {[%clk 0:03:00.9]} 1... Nf6 {[%clk 0:02:59.4]} 2. Nf3 {[%clk 0:02:58.7]}
2... e6 {[%clk 0:02:59.2]} 3. g3 {[%clk 0:02:58.1]} 3... b6 {[%clk 0:02:58.2]}
4. Bg2 {[%clk 0:02:57.8]} 4... Be7 {[%clk 0:02:58.3]} 5. O-O {[%clk 0:02:57.8]}
5... O-O {[%clk 0:02:58.2]} 6. Ne5 {[%clk 0:02:54.8]} 6... d5 {[%clk 0:02:58.2]}
7. c4 {[%clk 0:02:53.8]} 7... c6 {[%clk 0:02:52.6]} 8. Nc3 {[%clk 0:02:51.7]}
8... Bb7 {[%clk 0:02:52.6]} 9. Qa4 {[%clk 0:02:44.6]} 9... a6 {[%clk 0:02:38.9]}
10. Bf4 {[%clk 0:02:36.9]} 10... b5 {[%clk 0:02:38.4]} 11. cxb5 {[%clk
0:02:36.6]} 11... cxb5 {[%clk 0:02:34.4]} 12. Qb3 {[%clk 0:02:35.9]} 12... Nbd7
{[%clk 0:02:33.9]} 13. Rfc1 {[%clk 0:02:33.3]} 13... Nxe5 {[%clk 0:02:33.3]} 14.
Bxe5 {[%clk 0:02:31.7]} 14... Rc8 {[%clk 0:02:32.8]} 15. a4 {[%clk 0:02:27.4]}
15... b4 {[%clk 0:02:32.3]} 16. Bxf6 {[%clk 0:02:24.4]} 16... gxf6 {[%clk
0:02:29.6]} 17. Na2 {[%clk 0:02:22.7]} 17... a5 {[%clk 0:02:29.5]} 18. Qd3
{[%clk 0:02:17.8]} 18... Qd7 {[%clk 0:02:25.9]} 19. b3 {[%clk 0:02:16.4]} 19...
Rxc1+ {[%clk 0:02:23.3]} 20. Rxc1 {[%clk 0:02:14.9]} 20... Rc8 {[%clk
0:02:23.7]} 21. Qd2 {[%clk 0:02:07.2]} 21... Rc7 {[%clk 0:02:16.3]} 22. e3
{[%clk 0:02:04.6]} 22... f5 {[%clk 0:02:08]} 23. Bf1 {[%clk 0:02:03.5]} 23...
Qc8 {[%clk 0:02:06.1]} 24. Rxc7 {[%clk 0:01:55]} 24... Qxc7 {[%clk 0:02:05.9]}
25. Bb5 {[%clk 0:01:54.3]} 25... Bd6 {[%clk 0:01:52.7]} 26. Kf1 {[%clk
0:01:50.7]} 26... Bc8 {[%clk 0:01:50.8]} 27. Ke2 {[%clk 0:01:49.5]} 27... f6
{[%clk 0:01:50.1]} 28. Kd1 {[%clk 0:01:47.5]} 28... Qg7 {[%clk 0:01:40.1]} 29.
Be2 {[%clk 0:01:41]} 29... Qc7 {[%clk 0:01:39.2]} 30. Nc1 {[%clk 0:01:39.4]}
30... Bb7 {[%clk 0:01:34.8]} 31. Bb5 {[%clk 0:01:36.7]} 31... e5 {[%clk
0:01:32.8]} 32. Bd3 {[%clk 0:01:24.7]} 32... Bc8 {[%clk 0:01:28.3]} 33. Ne2
{[%clk 0:01:18.1]} 33... Be6 {[%clk 0:01:25.1]} 34. Qb2 {[%clk 0:01:08.3]} 34...
Kf7 {[%clk 0:01:21.9]} 35. Qb1 {[%clk 0:01:07.5]} 35... Qc8 {[%clk 0:01:20.1]}
36. Bb5 {[%clk 0:01:01.6]} 36... Ke7 {[%clk 0:01:19.1]} 37. Qd3 {[%clk
0:01:00.1]} 37... Qc7 {[%clk 0:01:11.5]} 38. h4 {[%clk 0:00:53]} 38... h6 {[%clk
0:01:08.2]} 39. Qd2 {[%clk 0:00:49.8]} 39... e4 {[%clk 0:00:59.4]} 40. Nc1
{[%clk 0:00:42.9]} 40... Kf7 {[%clk 0:00:55.2]} 41. Be2 {[%clk 0:00:42]} 41...
Kg7 {[%clk 0:00:54.5]} 42. Bh5 {[%clk 0:00:39.7]} 42... Bd7 {[%clk 0:00:52]} 43.
Ne2 {[%clk 0:00:36.8]} 43... Be6 {[%clk 0:00:51.3]} 44. Qc2 {[%clk 0:00:28.8]}
44... Qxc2+ {[%clk 0:00:48.8]} 45. Kxc2 {[%clk 0:00:28.3]} 45... Kf8 {[%clk
0:00:41.8]} 46. Kd2 {[%clk 0:00:26.5]} 46... Ke7 {[%clk 0:00:41.4]} 47. Nc1
{[%clk 0:00:23.4]} 47... Kd8 {[%clk 0:00:37.9]} 48. Bg6 {[%clk 0:00:22.1]} 48...
Ke7 {[%clk 0:00:36.4]} 49. Ke2 {[%clk 0:00:20.3]} 49... Kf8 {[%clk 0:00:36.4]}
50. Ke1 {[%clk 0:00:19.8]} 50... Kg7 {[%clk 0:00:36.5]} 51. Bh5 {[%clk
0:00:19.4]} 51... Kf8 {[%clk 0:00:36.7]} 52. Bg6 {[%clk 0:00:18.4]} 52... Kg7
{[%clk 0:00:36.7]} 53. Bh5 {[%clk 0:00:18.8]} 53... Kf8 {[%clk 0:00:36.8]} 54.
Bg6 {[%clk 0:00:18.6]} 1/2-1/2

[Event "Betsys MČR v online bleskovém šachu 2021"]
[Site "Chess.com"]
[Date "2021.04.17"]
[Round "5"]
[White "YawningBagel"]
[Black "Bohous13"]
[Result "1/2-1/2"]
[WhiteElo "1952"]
[BlackElo "2213"]
[TimeControl "180+1"]
[EndTime "9:47:34 PDT"]
[Termination "Remíza dohodou"]

1. d4 {[%clk 0:03:00.9]} 1... e6 {[%clk 0:03:00.1]} 2. c4 {[%clk 0:03:00.7]}
2... d5 {[%clk 0:03:00.6]} 3. Nc3 {[%clk 0:03:00.4]} 3... c5 {[%clk 0:03:00.7]}
4. cxd5 {[%clk 0:02:59.7]} 4... exd5 {[%clk 0:03:01.2]} 5. Nf3 {[%clk
0:02:57.8]} 5... Nc6 {[%clk 0:03:01.3]} 6. Bg5 {[%clk 0:02:29.6]} 6... Be7
{[%clk 0:03:00.5]} 7. Bxe7 {[%clk 0:02:28.4]} 7... Ngxe7 {[%clk 0:03:01.1]} 8.
g3 {[%clk 0:02:28.6]} 8... O-O {[%clk 0:02:59.7]} 9. Bg2 {[%clk 0:02:28.9]} 9...
cxd4 {[%clk 0:02:59.5]} 10. Nxd4 {[%clk 0:02:28.8]} 10... Qb6 {[%clk 0:02:59.5]}
11. Nxc6 {[%clk 0:02:27.8]} 11... bxc6 {[%clk 0:02:58.7]} 12. Qd2 {[%clk
0:02:23.3]} 12... Rb8 {[%clk 0:02:54]} 13. b3 {[%clk 0:02:20.2]} 13... Re8
{[%clk 0:02:43.3]} 14. O-O {[%clk 0:02:20.3]} 14... Ng6 {[%clk 0:02:39]} 15. e4
{[%clk 0:02:17.6]} 15... dxe4 {[%clk 0:02:11]} 16. Nxe4 {[%clk 0:02:16.8]} 16...
Ba6 {[%clk 0:02:07.5]} 17. Rfe1 {[%clk 0:02:10.7]} 17... Red8 {[%clk 0:02:03.8]}
18. Qc3 {[%clk 0:01:52.3]} 18... h6 {[%clk 0:01:52.8]} 19. Rac1 {[%clk
0:01:49.6]} 19... Rbc8 {[%clk 0:01:48.9]} 20. Qc5 {[%clk 0:01:45.4]} 20... Bd3
{[%clk 0:01:34]} 21. Nd2 {[%clk 0:00:38.3]} 21... Bb5 {[%clk 0:01:14.2]} 22. Ne4
{[%clk 0:00:30.5]} 22... Bd3 {[%clk 0:01:12.9]} 23. Nd2 {[%clk 0:00:30.3]} 23...
Bb5 {[%clk 0:01:12.2]} 24. Ne4 {[%clk 0:00:20]} 24... Ba6 {[%clk 0:01:03.5]} 25.
Qxb6 {[%clk 0:00:16.6]} 25... axb6 {[%clk 0:01:03.1]} 26. Red1 {[%clk 0:00:17]}
26... Bd3 {[%clk 0:00:56.5]} 27. Nc3 {[%clk 0:00:15.6]} 27... Nf8 {[%clk
0:00:48.3]} 28. Rd2 {[%clk 0:00:15.8]} 28... Bg6 {[%clk 0:00:17.7]} 29. Rxd8
{[%clk 0:00:15.2]} 29... Rxd8 {[%clk 0:00:18.6]} 30. Bxc6 {[%clk 0:00:15.3]}
30... Rd2 {[%clk 0:00:18.8]} 31. Be4 {[%clk 0:00:13.9]} 31... Ne6 {[%clk
0:00:17.5]} 32. Bxg6 {[%clk 0:00:14]} 32... fxg6 {[%clk 0:00:18]} 33. a4 {[%clk
0:00:14.2]} 33... Nd4 {[%clk 0:00:17.3]} 34. b4 {[%clk 0:00:13.1]} 34... Rd3
{[%clk 0:00:16]} 35. Kg2 {[%clk 0:00:12.5]} 35... Rd2 {[%clk 0:00:15.3]} 36. a5
{[%clk 0:00:12.5]} 36... bxa5 {[%clk 0:00:14.5]} 37. bxa5 {[%clk 0:00:13.4]}
37... Nb3 {[%clk 0:00:14.8]} 38. Rd1 {[%clk 0:00:11.4]} 38... Rxd1 {[%clk
0:00:14.1]} 39. Nxd1 {[%clk 0:00:12.3]} 39... Nxa5 {[%clk 0:00:14.5]} 40. Nc3
{[%clk 0:00:11.1]} 40... Nc6 {[%clk 0:00:13.6]} 1/2-1/2

[Event "Betsys MČR v online bleskovém šachu 2021"]
[Site "Chess.com"]
[Date "2021.04.17"]
[Round "5"]
[White "DiscoSTU666"]
[Black "Adam20032007"]
[Result "1-0"]
[WhiteElo "1891"]
[BlackElo "1731"]
[TimeControl "180+1"]
[EndTime "9:47:35 PDT"]
[Termination "Uživatel DiscoSTU666 zvítězil matem"]

1. e4 {[%clk 0:03:00.9]} 1... e6 {[%clk 0:02:56.5]} 2. d4 {[%clk 0:03:00.1]}
2... d5 {[%clk 0:02:56.8]} 3. Nc3 {[%clk 0:02:59.8]} 3... dxe4 {[%clk
0:02:55.5]} 4. Nxe4 {[%clk 0:02:59.1]} 4... Nf6 {[%clk 0:02:55.5]} 5. Bg5 {[%clk
0:02:55.3]} 5... Be7 {[%clk 0:02:55.3]} 6. Nxf6+ {[%clk 0:02:55.1]} 6... Bxf6
{[%clk 0:02:55.5]} 7. Bxf6 {[%clk 0:02:55.4]} 7... Qxf6 {[%clk 0:02:56.3]} 8.
Nf3 {[%clk 0:02:55.3]} 8... O-O {[%clk 0:02:53.3]} 9. Bd3 {[%clk 0:02:52.5]}
9... b6 {[%clk 0:02:46.7]} 10. O-O {[%clk 0:02:43.5]} 10... Bb7 {[%clk
0:02:46.6]} 11. Ne5 {[%clk 0:02:44]} 11... Qe7 {[%clk 0:02:41.5]} 12. c3 {[%clk
0:02:35.3]} 12... Nd7 {[%clk 0:02:38.4]} 13. Ng4 {[%clk 0:02:17.9]} 13... Qg5
{[%clk 0:02:34.9]} 14. Ne3 {[%clk 0:02:16.9]} 14... c5 {[%clk 0:02:27.3]} 15. f4
{[%clk 0:01:51.7]} 15... Qe7 {[%clk 0:02:22.6]} 16. Qh5 {[%clk 0:01:40.8]} 16...
Nf6 {[%clk 0:02:19.9]} 17. Qh4 {[%clk 0:01:33.9]} 17... cxd4 {[%clk 0:02:14.9]}
18. Bxh7+ {[%clk 0:01:28.2]} 18... Kh8 {[%clk 0:02:11.2]} 19. Be4+ {[%clk
0:01:13.8]} 19... Kg8 {[%clk 0:02:09.1]} 20. Bxb7 {[%clk 0:01:10.5]} 20... Qxb7
{[%clk 0:02:01.9]} 21. Rf3 {[%clk 0:01:04.3]} 21... dxe3 {[%clk 0:01:55.8]} 22.
Rh3 {[%clk 0:01:02]} 22... Nh5 {[%clk 0:01:43.9]} 23. Qxh5 {[%clk 0:01:01]}
23... f5 {[%clk 0:01:43.6]} 24. Qh7+ {[%clk 0:00:48]} 24... Kf7 {[%clk
0:01:42.5]} 25. Rg3 {[%clk 0:00:48.5]} 25... Rg8 {[%clk 0:01:40.7]} 26. Qg6+
{[%clk 0:00:46.2]} 26... Ke7 {[%clk 0:01:37.8]} 27. Rxe3 {[%clk 0:00:46.6]}
27... Kf8 {[%clk 0:01:10.2]} 28. Rae1 {[%clk 0:00:38.8]} 28... Re8 {[%clk
0:01:07.2]} 29. Rxe6 {[%clk 0:00:25.5]} 29... Rxe6 {[%clk 0:01:00.7]} 30. Qxe6
{[%clk 0:00:25.2]} 30... g6 {[%clk 0:00:51.7]} 31. Rd1 {[%clk 0:00:08.7]} 31...
Qc7 {[%clk 0:00:36.2]} 32. Qf6+ {[%clk 0:00:06.6]} 32... Ke8 {[%clk 0:00:32.8]}
33. Re1+ {[%clk 0:00:06.5]} 33... Kd7 {[%clk 0:00:31.3]} 34. Re7+ {[%clk
0:00:05.6]} 34... Kc8 {[%clk 0:00:31.1]} 35. Rxc7+ {[%clk 0:00:04.8]} 35... Kxc7
{[%clk 0:00:31.4]} 36. Qf7+ {[%clk 0:00:05.3]} 36... Kc6 {[%clk 0:00:31.8]} 37.
Qxg8 {[%clk 0:00:05.4]} 37... Kb5 {[%clk 0:00:32.3]} 38. Qxg6 {[%clk 0:00:05.4]}
38... a5 {[%clk 0:00:32.8]} 39. Qxf5+ {[%clk 0:00:05.3]} 39... Ka6 {[%clk
0:00:32.7]} 40. Qd3+ {[%clk 0:00:05.3]} 40... Kb7 {[%clk 0:00:32.1]} 41. f5
{[%clk 0:00:05.4]} 41... Ka7 {[%clk 0:00:32.6]} 42. f6 {[%clk 0:00:05.3]} 42...
a4 {[%clk 0:00:33.1]} 43. f7 {[%clk 0:00:05.2]} 43... Kb7 {[%clk 0:00:33.8]} 44.
f8=Q {[%clk 0:00:03.7]} 44... b5 {[%clk 0:00:34.7]} 45. Qf6 {[%clk 0:00:02.9]}
45... Ka7 {[%clk 0:00:34.7]} 46. Qd7+ {[%clk 0:00:02.7]} 46... Kb8 {[%clk
0:00:34.6]} 47. Qf8# {[%clk 0:00:02.6]} 1-0

[Event "Betsys MČR v online bleskovém šachu 2021"]
[Site "Chess.com"]
[Date "2021.04.17"]
[Round "5"]
[White "Terilka"]
[Black "sachmaty8"]
[Result "0-1"]
[WhiteElo "1514"]
[BlackElo "1828"]
[TimeControl "180+1"]
[EndTime "9:47:36 PDT"]
[Termination "Uživatel sachmaty8 zvítězil na čas"]

1. d4 {[%clk 0:03:00.9]} 1... Nf6 {[%clk 0:02:59.5]} 2. Nf3 {[%clk 0:03:00.7]}
2... e6 {[%clk 0:02:58.4]} 3. e3 {[%clk 0:03:00.5]} 3... c5 {[%clk 0:02:57.4]}
4. Bd3 {[%clk 0:02:59]} 4... Nc6 {[%clk 0:02:56.6]} 5. c4 {[%clk 0:02:57.3]}
5... Be7 {[%clk 0:02:52]} 6. Nc3 {[%clk 0:02:57]} 6... O-O {[%clk 0:02:51.8]} 7.
O-O {[%clk 0:02:56.7]} 7... cxd4 {[%clk 0:02:49.6]} 8. exd4 {[%clk 0:02:51.2]}
8... d5 {[%clk 0:02:49]} 9. cxd5 {[%clk 0:02:34.2]} 9... Nxd5 {[%clk 0:02:48.1]}
10. Nxd5 {[%clk 0:02:33.2]} 10... Qxd5 {[%clk 0:02:47]} 11. Bf4 {[%clk
0:02:29.8]} 11... Bf6 {[%clk 0:02:45.4]} 12. Be3 {[%clk 0:02:25.8]} 12... b6
{[%clk 0:02:38.8]} 13. Rc1 {[%clk 0:02:17.6]} 13... Bb7 {[%clk 0:02:37.5]} 14.
Bc4 {[%clk 0:02:11.2]} 14... Qd6 {[%clk 0:02:36]} 15. Qd2 {[%clk 0:01:56.8]}
15... Rfd8 {[%clk 0:02:33.6]} 16. Rfd1 {[%clk 0:01:56.7]} 16... h6 {[%clk
0:02:21.7]} 17. Bf4 {[%clk 0:01:53.9]} 17... Qd7 {[%clk 0:02:20.7]} 18. Be3
{[%clk 0:01:48.2]} 18... Rac8 {[%clk 0:02:16]} 19. Bb5 {[%clk 0:01:45.4]} 19...
Qe7 {[%clk 0:02:07.2]} 20. Qe2 {[%clk 0:01:22.1]} 20... Nb4 {[%clk 0:02:02.5]}
21. Rxc8 {[%clk 0:01:14.9]} 21... Rxc8 {[%clk 0:02:01.1]} 22. a3 {[%clk
0:01:10.7]} 22... Nd5 {[%clk 0:01:57.8]} 23. Rc1 {[%clk 0:00:49.3]} 23... Rxc1+
{[%clk 0:01:56]} 24. Bxc1 {[%clk 0:00:50.2]} 24... Qc7 {[%clk 0:01:53.6]} 25.
Bd2 {[%clk 0:00:39.3]} 25... Nf4 {[%clk 0:01:49.3]} 26. Bxf4 {[%clk 0:00:30.1]}
26... Qxf4 {[%clk 0:01:47.4]} 27. Qc4 {[%clk 0:00:20.5]} 27... Bxf3 {[%clk
0:01:19.8]} 28. gxf3 {[%clk 0:00:19.7]} 28... Qxf3 {[%clk 0:01:19.4]} 29. Qc8+
{[%clk 0:00:18.2]} 29... Kh7 {[%clk 0:01:19.5]} 30. Qc2+ {[%clk 0:00:17.2]}
30... g6 {[%clk 0:01:15.5]} 31. Be2 {[%clk 0:00:16.5]} 31... Qd5 {[%clk
0:01:12.5]} 32. Qc7 {[%clk 0:00:12.6]} 32... Kg7 {[%clk 0:01:11.2]} 33. Bc4
{[%clk 0:00:10.4]} 33... Qe4 {[%clk 0:00:59.1]} 34. Qd7 {[%clk 0:00:04.3]} 34...
Qg4+ {[%clk 0:00:36.7]} 35. Kf1 {[%clk 0:00:03.7]} 35... Qxd4 {[%clk 0:00:15.7]}
36. Qc7 {[%clk 0:00:02.1]} 36... Qe5 {[%clk 0:00:12.6]} 0-1

[Event "Betsys MČR v online bleskovém šachu 2021"]
[Site "Chess.com"]
[Date "2021.04.17"]
[Round "5"]
[White "youhy"]
[Black "Tynano"]
[Result "1-0"]
[WhiteElo "1779"]
[BlackElo "2030"]
[TimeControl "180+1"]
[EndTime "9:47:39 PDT"]
[Termination "Uživatel youhy zvítězil po vzdání soupeře"]

1. d4 {[%clk 0:03:00.9]} 1... Nf6 {[%clk 0:02:58.2]} 2. Nf3 {[%clk 0:03:00.6]}
2... g6 {[%clk 0:02:56.5]} 3. c4 {[%clk 0:02:59.3]} 3... Bg7 {[%clk 0:02:31]} 4.
g3 {[%clk 0:02:58]} 4... O-O {[%clk 0:02:29.4]} 5. Bg2 {[%clk 0:02:57.4]} 5...
d5 {[%clk 0:02:29.7]} 6. O-O {[%clk 0:02:56.1]} 6... dxc4 {[%clk 0:02:29.7]} 7.
Na3 {[%clk 0:02:53.9]} 7... c5 {[%clk 0:02:29.8]} 8. dxc5 {[%clk 0:02:52]} 8...
Qa5 {[%clk 0:02:29]} 9. Nxc4 {[%clk 0:02:30.7]} 9... Qxc5 {[%clk 0:02:27.4]} 10.
Nce5 {[%clk 0:02:23.5]} 10... Bf5 {[%clk 0:02:05.3]} 11. Be3 {[%clk 0:02:20]}
11... Qa5 {[%clk 0:02:02.8]} 12. Nc4 {[%clk 0:02:11.7]} 12... Qc7 {[%clk
0:01:55.2]} 13. Rc1 {[%clk 0:02:09.3]} 13... Nc6 {[%clk 0:01:55]} 14. Nfe5
{[%clk 0:02:04.4]} 14... Nxe5 {[%clk 0:01:45.9]} 15. Bf4 {[%clk 0:01:52.7]}
15... Nh5 {[%clk 0:01:42.3]} 16. Nxe5 {[%clk 0:01:49.5]} 16... Qb6 {[%clk
0:01:34.6]} 17. Nc4 {[%clk 0:01:21]} 17... Qa6 {[%clk 0:01:29.2]} 18. Qb3 {[%clk
0:00:49.9]} 18... Bc8 {[%clk 0:01:05.4]} 19. Bc7 {[%clk 0:00:40.5]} 19... b5
{[%clk 0:00:51.6]} 20. Na5 {[%clk 0:00:30.3]} 20... Bb7 {[%clk 0:00:50.4]} 21.
Bxb7 {[%clk 0:00:28.8]} 21... Qxb7 {[%clk 0:00:51.3]} 22. Nxb7 {[%clk
0:00:28.4]} 22... Nf6 {[%clk 0:00:50.4]} 23. Nc5 {[%clk 0:00:26.8]} 23... e6
{[%clk 0:00:48.5]} 24. Be5 {[%clk 0:00:25.8]} 24... Rad8 {[%clk 0:00:45.5]} 25.
Rfd1 {[%clk 0:00:23]} 25... Rc8 {[%clk 0:00:43.3]} 26. Bxf6 {[%clk 0:00:21.9]}
26... Bxf6 {[%clk 0:00:43.4]} 27. Nd7 {[%clk 0:00:22]} 27... Rxc1 {[%clk
0:00:39.6]} 28. Nxf6+ {[%clk 0:00:18.2]} 28... Kg7 {[%clk 0:00:38.7]} 29. Rxc1
{[%clk 0:00:19.1]} 29... Kxf6 {[%clk 0:00:38.9]} 30. Qc3+ {[%clk 0:00:19.2]}
30... Kg5 {[%clk 0:00:35.8]} 31. Qe5+ {[%clk 0:00:18.5]} 31... Kh6 {[%clk
0:00:35.7]} 32. h4 {[%clk 0:00:16.6]} 32... f6 {[%clk 0:00:34.1]} 33. Qxe6
{[%clk 0:00:16]} 33... Kh5 {[%clk 0:00:32.5]} 34. Rc5+ {[%clk 0:00:15.4]} 34...
Kh6 {[%clk 0:00:32.4]} 35. Qe3+ {[%clk 0:00:14.7]} 35... Kg7 {[%clk 0:00:30.8]}
36. Rc7+ {[%clk 0:00:14.1]} 36... Rf7 {[%clk 0:00:31.3]} 37. Rxf7+ {[%clk
0:00:13.6]} 37... Kxf7 {[%clk 0:00:32.2]} 38. Qxa7+ {[%clk 0:00:13.5]} 38... Ke6
{[%clk 0:00:32.1]} 39. Qb6+ {[%clk 0:00:13.5]} 39... Kf5 {[%clk 0:00:32.3]} 40.
Kg2 {[%clk 0:00:14]} 40... g5 {[%clk 0:00:31.5]} 41. Kf3 {[%clk 0:00:14.2]}
41... h5 {[%clk 0:00:28.7]} 42. Qc5+ {[%clk 0:00:13.1]} 42... Kg6 {[%clk
0:00:28.7]} 43. hxg5 {[%clk 0:00:12.8]} 43... fxg5 {[%clk 0:00:26.6]} 44. Qd6+
{[%clk 0:00:12.8]} 44... Kf5 {[%clk 0:00:26.9]} 45. Qd5+ {[%clk 0:00:13]} 45...
Kg6 {[%clk 0:00:27.2]} 46. Qe6+ {[%clk 0:00:13.2]} 46... Kg7 {[%clk 0:00:27.1]}
47. Ke4 {[%clk 0:00:13.4]} 1-0